fUST/lending_fUST_20250307
["ID","MTS","AMOUNT","RATE_DAILY","PERIOD"]
[355599367,1741357846437,-500.0,0.00038411,30]
[355599368,1741357846446,-500.0,0.00038411,30]
[355599369,1741357846456,-500.0,0.00038438,30]
[355599370,1741357846465,-500.0,0.00038438,30]
[355599371,1741357846475,-500.0,0.00038466,30]
[355599372,1741357846484,-500.0,0.00038493,30]
[355599373,1741357846494,-791.9923585,0.00038511,2]
[355599374,1741357846504,-500.0,0.0003852,30]
[355599375,1741357846513,-10762.52913419,0.0003853,2]
[355599376,1741357846522,-500.0,0.00038548,30]
[355599377,1741357846532,-500.0,0.00038575,30]
[355599378,1741357846541,-511.00000016,0.00038603,30]
[355599379,1741357846555,-500.0,0.0003863,30]
[355599380,1741357846565,-806.97,0.0003863,30]
[355599381,1741357846575,-500.0,0.0003863,30]
[355599382,1741357846585,-500.0,0.0003863,30]
[355599383,1741357846595,-500.0,0.0003863,30]
[355599384,1741357846604,-500.0,0.0003863,30]
[355599385,1741357846614,-500.0,0.0003863,30]
[355599386,1741357846622,-500.0,0.0003863,30]
[355599387,1741357846632,-500.0,0.0003863,30]
[355599388,1741357846642,-337.0,0.0003863,30]
[355599389,1741357846652,-378.86070544,0.0003863,30]
[355599390,1741357846662,-500.0,0.0003863,3]
[355599391,1741357846672,-500.0,0.0003863,30]
[355599392,1741357846682,-500.0,0.0003863,30]
[355599393,1741357846692,-500.0,0.0003863,30]
[355599394,1741357846702,-705.57,0.0003863,30]
[355599395,1741357846712,-500.0,0.0003863,30]
[355599396,1741357846724,-2051.0,0.0003863,30]
[355599397,1741357846733,-500.0,0.0003863,30]
[355599398,1741357846743,-706.25,0.0003863,30]
[355599399,1741357846752,-500.0,0.0003863,30]
[355599400,1741357846761,-500.0,0.0003863,30]
[355599401,1741357846771,-534.65549021,0.0003863,2]
[355599402,1741357846779,-500.0,0.0003863,30]
[355599403,1741357846788,-580.88,0.0003863,30]
[355599404,1741357846798,-500.0,0.0003863,30]
[355599405,1741357846813,-558.69,0.0003863,30]
[355599406,1741357846823,-500.0,0.0003863,30]
[355599407,1741357846832,-500.0,0.0003863,30]
[355599408,1741357846841,-500.0,0.0003863,30]
[355599409,1741357846851,-500.0,0.0003863,30]
[355599410,1741357846860,-512.17,0.0003863,30]
[355599411,1741357846870,-500.0,0.0003863,30]
[355599412,1741357846879,-500.0,0.0003863,30]
[355599413,1741357846888,-500.0,0.0003863,30]
[355599414,1741357846899,-500.0,0.0003863,30]
[355599415,1741357846908,-500.0,0.0003863,30]
[355599416,1741357846917,-602.65,0.0003863,30]
[355599417,1741357846927,-500.0,0.0003863,30]
[355599418,1741357846937,-712.98,0.0003863,30]
[355599419,1741357846946,-500.0,0.0003863,30]
[355599420,1741357846956,-500.0,0.0003863,30]
[355599421,1741357846965,-500.0,0.0003863,30]
[355599422,1741357846974,-330.99711601,0.0003863,30]
[355599423,1741357846983,-1165.07,0.0003863,30]
[355599424,1741357846992,-500.0,0.0003863,30]
[355599425,1741357847001,-1041.2,0.0003863,30]
[355599426,1741357847011,-1106.08,0.0003863,30]
[355599427,1741357847020,-500.0,0.0003863,30]
[355599428,1741357847030,-832.8,0.0003863,30]
[355599429,1741357847039,-500.0,0.0003863,30]
[355599430,1741357847048,-500.0,0.0003863,30]
[355599431,1741357847061,-500.0,0.0003863,30]
[355599432,1741357847070,-500.0,0.0003863,30]
[355599433,1741357847080,-548.57,0.0003863,30]
[355599434,1741357847089,-500.0,0.0003863,30]
[355599435,1741357847099,-663.33,0.0003863,30]
[355599436,1741357847108,-500.0,0.0003863,2]
[355599437,1741357847117,-500.0,0.0003863,30]
[355599438,1741357847127,-500.0,0.0003863,30]
[355599439,1741357847136,-500.0,0.0003863,30]
[355599440,1741357847149,-571.98,0.0003863,30]
[355599441,1741357847159,-508.75,0.0003863,30]
[355599442,1741357847168,-500.0,0.0003863,30]
[355599443,1741357847177,-773.88,0.0003863,30]
[355599444,1741357847186,-500.0,0.0003863,30]
[355599445,1741357847196,-1190.57,0.0003863,30]
[355599446,1741357847205,-609.34573228,0.0003863,30]
[355599447,1741357847214,-773.31,0.0003863,30]
[355599448,1741357847225,-535.22,0.0003863,30]
[355599449,1741357847233,-1000.0,0.0003863,7]
[355599450,1741357847242,-500.0,0.0003863,30]
[355599451,1741357847251,-674.96,0.0003863,30]
[355599452,1741357847260,-500.0,0.0003863,30]
[355599453,1741357847269,-500.0,0.0003863,30]
[355599454,1741357847278,-500.0,0.0003863,30]
[355599455,1741357847287,-500.0,0.0003863,30]
[355599456,1741357847296,-500.0,0.0003863,30]
[355599457,1741357847309,-1092.95,0.0003863,30]
[355599458,1741357847319,-500.0,0.0003863,30]
[355599459,1741357847328,-8089.12,0.0003863,30]
[355599460,1741357847337,-500.0,0.0003863,30]
[355599461,1741357847346,-1368.46,0.0003863,30]
[355599462,1741357847356,-500.0,0.0003863,30]
[355599463,1741357847365,-1646.73,0.0003863,30]
[355599464,1741357847374,-1042.05,0.0003863,30]
[355599465,1741357847383,-896.61,0.0003863,30]
[355599466,1741357847392,-1423.74,0.0003863,30]
[355599467,1741357847401,-545.4,0.0003863,30]
[355599468,1741357847411,-1667.47,0.0003863,30]
[355599469,1741357847420,-855.28,0.0003863,30]
[355599470,1741357847429,-1876.6,0.0003863,30]
[355599471,1741357847438,-500.0,0.0003863,30]
[355599472,1741357847447,-500.0,0.0003863,30]
[355599473,1741357847456,-685.68,0.0003863,30]
[355599474,1741357847465,-1348.74,0.0003863,30]
[355599475,1741357847474,-1572.44,0.0003863,30]
[355599476,1741357847483,-500.0,0.0003863,30]
[355599477,1741357847492,-500.0,0.0003863,30]
[355599478,1741357847501,-500.0,0.0003863,30]
[355599479,1741357847510,-500.0,0.0003863,30]
[355599480,1741357847519,-500.0,0.0003863,30]
[355599481,1741357847528,-132607.36,0.0003863,7]
[355599482,1741357847537,-850.8,0.0003863,30]
[355599483,1741357847546,-500.0,0.0003863,30]
[355599484,1741357847560,-500.0,0.0003863,30]
[355599485,1741357847569,-904.12,0.0003863,30]
[355599486,1741357847577,-1621.58,0.0003863,30]
[355599487,1741357847586,-500.0,0.0003863,30]
[355599488,1741357847595,-1312.15,0.0003863,30]
[355599489,1741357847604,-500.0,0.0003863,30]
[355599490,1741357847613,-716.55,0.0003863,30]
[355599491,1741357847622,-2610.77,0.0003863,30]
[355599492,1741357847631,-500.0,0.0003863,30]
[355599493,1741357847641,-500.0,0.0003863,30]
[355599494,1741357847651,-504.36035276,0.0003863,30]
[355599495,1741357847660,-500.0,0.0003863,30]
[355599496,1741357847670,-1292.51,0.0003863,30]
[355599497,1741357847681,-612.3,0.0003863,30]
[355599498,1741357847690,-500.0,0.0003863,30]
[355599499,1741357847700,-1382.9,0.0003863,30]
[355599500,1741357847709,-2004.36,0.0003863,15]
[355599501,1741357847719,-500.0,0.0003863,30]
[355599502,1741357847729,-577.0,0.0003863,30]
[355599503,1741357847738,-6428.78,0.0003863,30]
[355599504,1741357847747,-722.58,0.0003863,30]
[355599505,1741357847756,-1032.7,0.0003863,30]
[355599506,1741357847765,-500.0,0.0003863,30]
[355599507,1741357847774,-665.5,0.0003863,30]
[355599508,1741357847783,-500.0,0.0003863,30]
[355599509,1741357847793,-410.40429968,0.0003863,30]
[355599510,1741357847806,-8893.18,0.0003863,30]
[355599511,1741357847815,-795.02,0.0003863,30]
[355599512,1741357847824,-500.0,0.0003863,30]
[355599513,1741357847834,-1493.56,0.0003863,30]
[355599514,1741357847843,-4367.99,0.0003863,30]
[355599515,1741357847851,-749.31,0.0003863,30]
[355599516,1741357847861,-2707.82,0.0003863,30]
[355599517,1741357847870,-500.0,0.0003863,30]
[355599518,1741357847879,-643.96,0.0003863,30]
[355599519,1741357847888,-500.0,0.0003863,30]
[355599520,1741357847897,-500.0,0.0003863,30]
[355599521,1741357847907,-500.0,0.0003863,30]
[355599522,1741357847917,-2470.25,0.0003863,30]
[355599523,1741357847926,-591.29,0.0003863,30]
[355599524,1741357847936,-5064.26,0.0003863,30]
[355599525,1741357847945,-500.0,0.0003863,30]
[355599526,1741357847955,-2702.56,0.0003863,30]
[355599527,1741357847965,-796.49,0.0003863,30]
[355599528,1741357847975,-748.95,0.0003863,30]
[355599529,1741357847984,-968.16,0.0003863,30]
[355599530,1741357847993,-250.74621694,0.0003863,30]
[355599531,1741357848003,-1575.88,0.0003863,30]
[355599532,1741357848013,-1434.71,0.0003863,30]
[355599533,1741357848022,-1248.42,0.0003863,30]
[355599534,1741357848032,-1206.59,0.0003863,30]
[355599535,1741357848042,-713.9,0.0003863,30]
[355599536,1741357848052,-500.0,0.0003863,30]
[355599537,1741357848061,-674.94,0.0003863,30]
[355599538,1741357848072,-1065.08,0.0003863,7]
[355599539,1741357848082,-673.48,0.0003863,30]
[355599540,1741357848092,-500.0,0.0003863,30]
[355599541,1741357848102,-1075.1,0.0003863,30]
[355599542,1741357848113,-765.28,0.0003863,30]
[355599543,1741357848123,-500.0,0.0003863,30]
[355599544,1741357848138,-500.0,0.0003863,30]
[355599545,1741357848148,-773.72,0.0003863,30]
[355599546,1741357848158,-3559.04,0.0003863,30]
[355599547,1741357848168,-1301.44,0.0003863,30]
[355599548,1741357848179,-3825.24,0.0003863,30]
[355599549,1741357848189,-2253.86,0.0003863,30]
[355599550,1741357848200,-500.0,0.0003863,30]
[355599551,1741357848212,-4575.66,0.0003863,30]
[355599552,1741357848223,-500.0,0.0003863,30]
[355599553,1741357848233,-10000.0,0.0003863,14]
[355599554,1741357848243,-639.23,0.0003863,30]
[355599555,1741357848253,-10000.0,0.0003863,14]
[355599556,1741357848263,-4376.22,0.0003863,30]
[355599557,1741357848273,-1801.35,0.0003863,30]
[355599558,1741357848282,-500.0,0.0003863,30]
[355599559,1741357848292,-500.0,0.0003863,30]
[355599560,1741357848304,-500.0,0.0003863,30]
[355599561,1741357848314,-500.0,0.0003863,30]
[355599562,1741357848325,-546.0,0.0003863,30]
[355599563,1741357848335,-500.0,0.0003863,2]
[355599564,1741357848346,-10020.24122864,0.0003863,2]
[355599565,1741357848356,-791.9923585,0.00038631,2]
[355599566,1741357848367,-398.0,0.00038701,2]
[355599567,1741357848377,-858.0,0.000388,2]
[355599568,1741357848387,-1000.0,0.000388,2]
[355599569,1741357848397,-1000.0,0.000388,2]
[355599570,1741357848407,-1000.0,0.000388,2]
[355599571,1741357848418,-1000.0,0.000388,2]
[355599572,1741357848429,-1000.0,0.000388,2]
[355599573,1741357848439,-1000.0,0.000388,2]
[355599574,1741357848448,-1000.0,0.000388,2]
[355599575,1741357848458,-600.0,0.000388,2]
[355599576,1741357848468,-10000.0,0.00038894,14]
[355599577,1741357848478,-10000.0,0.00038894,14]
[355599578,1741357848488,-500.0,0.00038904,30]
[355599579,1741357848498,-806.97,0.00038904,30]
[355599580,1741357848508,-500.0,0.00038904,30]
[355599581,1741357848517,-500.0,0.00038904,30]
[355599582,1741357848527,-500.0,0.00038904,30]
[355599583,1741357848537,-500.0,0.00038904,30]
[355599584,1741357848546,-500.0,0.00038904,30]
[355599585,1741357848560,-500.0,0.00038904,30]
[355599586,1741357848570,-506.05512904,0.00038904,30]
[355599587,1741357848580,-500.0,0.00038904,3]
[355599588,1741357848591,-500.0,0.00038904,30]
[355599589,1741357848601,-500.0,0.00038904,30]
[355599590,1741357848611,-500.0,0.00038904,30]
[355599591,1741357848621,-705.57,0.00038904,30]
[355599592,1741357848632,-500.0,0.00038904,30]
[355599593,1741357848642,-2051.0,0.00038904,30]
[355599594,1741357848652,-500.0,0.00038904,30]
[355599595,1741357848662,-706.25,0.00038904,30]
[355599596,1741357848672,-500.0,0.00038904,30]
[355599597,1741357848681,-500.0,0.00038904,30]
[355599598,1741357848691,-500.0,0.00038904,30]
[355599599,1741357848701,-580.88,0.00038904,30]
[355599600,1741357848711,-500.0,0.00038904,30]
[355599601,1741357848720,-558.69,0.00038904,30]
[355599602,1741357848730,-500.0,0.00038904,30]
[355599603,1741357848740,-500.0,0.00038904,30]
[355599604,1741357848750,-500.0,0.00038904,30]
[355599605,1741357848760,-500.0,0.00038904,30]
[355599606,1741357848770,-512.17,0.00038904,30]
[355599607,1741357848780,-500.0,0.00038904,30]
[355599608,1741357848790,-500.0,0.00038904,30]
[355599609,1741357848799,-500.0,0.00038904,30]
[355599610,1741357848813,-500.0,0.00038904,30]
[355599611,1741357848824,-500.0,0.00038904,30]
[355599612,1741357848835,-602.65,0.00038904,30]
[355599613,1741357848846,-500.0,0.00038904,30]
[355599614,1741357848858,-712.98,0.00038904,30]
[355599615,1741357848869,-500.0,0.00038904,30]
[355599616,1741357848881,-500.0,0.00038904,30]
[355599617,1741357848892,-500.0,0.00038904,30]
[355599618,1741357848903,-1165.07,0.00038904,30]
[355599619,1741357848914,-500.0,0.00038904,30]
[355599620,1741357848925,-1041.2,0.00038904,30]
[355599621,1741357848937,-1106.08,0.00038904,30]
[355599622,1741357848948,-500.0,0.00038904,30]
[355599623,1741357848959,-832.8,0.00038904,30]
[355599624,1741357848969,-500.0,0.00038904,30]
[355599625,1741357848980,-500.0,0.00038904,30]
[355599626,1741357848990,-500.0,0.00038904,30]
[355599627,1741357849000,-500.0,0.00038904,30]
[355599628,1741357849011,-548.57,0.00038904,30]
[355599629,1741357849020,-500.0,0.00038904,30]
[355599630,1741357849031,-663.33,0.00038904,30]
[355599631,1741357849042,-500.0,0.00038904,2]
[355599632,1741357849055,-500.0,0.00038904,30]
[355599633,1741357849066,-500.0,0.00038904,30]
[355599634,1741357849076,-500.0,0.00038904,30]
[355599635,1741357849086,-571.98,0.00038904,30]
[355599636,1741357849096,-508.75,0.00038904,30]
[355599637,1741357849107,-273.18251643,0.00038904,30]
[355599638,1741357849118,-773.88,0.00038904,30]
[355599639,1741357849128,-500.0,0.00038904,30]
[355599640,1741357849138,-1190.57,0.00038904,30]
[355599641,1741357849153,-773.31,0.00038904,30]
[355599642,1741357849163,-535.22,0.00038904,30]
[355599643,1741357849174,-1000.0,0.00038904,7]
[355599644,1741357849185,-500.0,0.00038904,30]
[355599645,1741357849195,-674.96,0.00038904,30]
[355599646,1741357849204,-500.0,0.00038904,30]
[355599647,1741357849214,-500.0,0.00038904,30]
[355599648,1741357849226,-500.0,0.00038904,30]
[355599649,1741357849236,-500.0,0.00038904,30]
[355599650,1741357849246,-195.78172672,0.00038904,30]
[355599651,1741357849256,-1092.95,0.00038904,30]
[355599652,1741357849266,-500.0,0.00038904,30]
[355599653,1741357849276,-8089.12,0.00038904,30]
[355599654,1741357849286,-500.0,0.00038904,30]
[355599655,1741357849296,-1368.46,0.00038904,30]
[355599656,1741357849309,-500.0,0.00038904,30]
[355599657,1741357849319,-1646.73,0.00038904,30]
[355599658,1741357849330,-1042.05,0.00038904,30]
[355599659,1741357849341,-896.61,0.00038904,30]
[355599660,1741357849351,-1423.74,0.00038904,30]
[355599661,1741357849362,-545.4,0.00038904,30]
[355599662,1741357849372,-1667.47,0.00038904,30]
[355599663,1741357849382,-855.28,0.00038904,30]
[355599664,1741357849393,-1876.6,0.00038904,30]
[355599665,1741357849403,-500.0,0.00038904,30]
[355599666,1741357849413,-500.0,0.00038904,30]
[355599667,1741357849423,-685.68,0.00038904,30]
[355599668,1741357849433,-1348.74,0.00038904,30]
[355599669,1741357849442,-1572.44,0.00038904,30]
[355599670,1741357849452,-500.0,0.00038904,30]
[355599671,1741357849461,-500.0,0.00038904,30]
[355599672,1741357849471,-500.0,0.00038904,30]
[355599673,1741357849481,-500.0,0.00038904,30]
[355599674,1741357849491,-500.0,0.00038904,30]
[355599675,1741357849500,-132607.36,0.00038904,7]
[355599676,1741357849511,-850.8,0.00038904,30]
[355599677,1741357849521,-500.0,0.00038904,30]
[355599678,1741357849531,-500.0,0.00038904,30]
[355599679,1741357849542,-904.12,0.00038904,30]
[355599680,1741357849555,-1621.58,0.00038904,30]
[355599681,1741357849564,-252.12655126,0.00038904,30]
[355599682,1741357849574,-1312.15,0.00038904,30]
[355599683,1741357849584,-500.0,0.00038904,30]
[355599684,1741357849594,-716.55,0.00038904,30]
[355599685,1741357849603,-2610.77,0.00038904,30]
[355599686,1741357849614,-500.0,0.00038904,30]
[355599687,1741357849624,-500.0,0.00038904,30]
[355599688,1741357849634,-500.0,0.00038904,30]
[355599689,1741357849644,-1292.51,0.00038904,30]
[355599690,1741357849654,-612.3,0.00038904,30]
[355599691,1741357849663,-500.0,0.00038904,30]
[355599692,1741357849674,-1382.9,0.00038904,30]
[355599693,1741357849683,-2004.36,0.00038904,15]
[355599694,1741357849693,-500.0,0.00038904,30]
[355599695,1741357849702,-577.0,0.00038904,30]
[355599696,1741357849712,-6428.78,0.00038904,30]
[355599697,1741357849722,-722.58,0.00038904,30]
[355599698,1741357849732,-1032.7,0.00038904,30]
[355599699,1741357849742,-500.0,0.00038904,30]
[355599700,1741357849751,-665.5,0.00038904,30]
[355599701,1741357849762,-500.0,0.00038904,30]
[355599702,1741357849771,-8893.18,0.00038904,30]
[355599703,1741357849781,-795.02,0.00038904,30]
[355599704,1741357849790,-500.0,0.00038904,30]
[355599705,1741357849801,-1493.56,0.00038904,30]
[355599706,1741357849812,-4367.99,0.00038904,30]
[355599707,1741357849822,-749.31,0.00038904,30]
[355599708,1741357849831,-2707.82,0.00038904,30]
[355599709,1741357849841,-500.0,0.00038904,30]
[355599710,1741357849851,-643.96,0.00038904,30]
[355599711,1741357849860,-500.0,0.00038904,30]
[355599712,1741357849870,-500.0,0.00038904,30]
[355599713,1741357849879,-500.0,0.00038904,30]
[355599714,1741357849889,-2470.25,0.00038904,30]
[355599715,1741357849899,-591.29,0.00038904,30]
[355599716,1741357849909,-5064.26,0.00038904,30]
[355599717,1741357849920,-500.0,0.00038904,30]
[355599718,1741357849930,-2702.56,0.00038904,30]
[355599719,1741357849940,-796.49,0.00038904,30]
[355599720,1741357849950,-748.95,0.00038904,30]
[355599721,1741357849960,-968.16,0.00038904,30]
[355599722,1741357849970,-1575.88,0.00038904,30]
[355599723,1741357849980,-1434.71,0.00038904,30]
[355599724,1741357849989,-1248.42,0.00038904,30]
[355599725,1741357849999,-1206.59,0.00038904,30]
[355599726,1741357850009,-713.9,0.00038904,30]
[355599727,1741357850019,-551.79655898,0.00038904,30]
[355599728,1741357850029,-674.94,0.00038904,30]
[355599729,1741357850039,-1065.08,0.00038904,7]
[355599730,1741357850049,-673.48,0.00038904,30]
[355599731,1741357850062,-500.0,0.00038904,30]
[355599732,1741357850071,-1075.1,0.00038904,30]
[355599733,1741357850082,-500.0,0.00038904,30]
[355599734,1741357850092,-765.28,0.00038904,30]
[355599735,1741357850102,-500.0,0.00038904,30]
[355599736,1741357850112,-773.72,0.00038904,30]
[355599737,1741357850122,-3559.04,0.00038904,30]
[355599738,1741357850133,-1301.44,0.00038904,30]
[355599739,1741357850145,-3825.24,0.00038904,30]
[355599740,1741357850155,-2253.86,0.00038904,30]
[355599741,1741357850165,-500.0,0.00038904,30]
[355599742,1741357850175,-4575.66,0.00038904,30]
[355599743,1741357850186,-500.0,0.00038904,30]
[355599744,1741357850196,-10000.0,0.00038904,14]
[355599745,1741357850207,-639.23,0.00038904,30]
[355599746,1741357850218,-4376.22,0.00038904,30]
[355599747,1741357850229,-10000.0,0.00038904,14]
[355599748,1741357850238,-1801.35,0.00038904,30]
[355599749,1741357850249,-500.0,0.00038904,30]
[355599750,1741357850259,-500.0,0.00038904,30]
[355599751,1741357850268,-500.0,0.00038904,30]
[355599752,1741357850278,-500.0,0.00038904,30]
[355599753,1741357850289,-546.0,0.00038904,30]
[355599754,1741357850299,-500.0,0.00038904,2]
[355599755,1741357850312,-160.0,0.00038975,4]
[355599756,1741357850323,-791.9923585,0.0003898,2]
[355599757,1741357850334,-357.23,0.00039,30]
[355599758,1741357850344,-80532.95400895,0.00039,120]
[355599759,1741357850356,-160.0,0.00039,7]
[355599760,1741357850367,-550.22506721,0.00039,120]
[355599761,1741357850377,-416.66666667,0.00039,30]
[355599762,1741357850387,-21982.88051346,0.00039,2]
[355599763,1741357850397,-168.0,0.00039,2]
[355599764,1741357850408,-500.0,0.00039151,7]
[355599765,1741357850582,-150.0,0.00039173,5]
[355599766,1741357850594,-500.0,0.00039178,30]
[355599767,1741357850605,-806.97,0.00039178,30]
[355599768,1741357850616,-500.0,0.00039178,30]
[355599769,1741357850627,-500.0,0.00039178,30]
[355599770,1741357850638,-500.0,0.00039178,30]
[355599771,1741357850649,-500.0,0.00039178,30]
[355599772,1741357850660,-500.0,0.00039178,30]
[355599773,1741357850670,-500.0,0.00039178,30]
[355599774,1741357850680,-500.0,0.00039178,3]
[355599775,1741357850691,-500.0,0.00039178,30]
[355599776,1741357850701,-500.0,0.00039178,30]
[355599777,1741357850711,-500.0,0.00039178,30]
[355599778,1741357850721,-705.57,0.00039178,30]
[355599779,1741357850732,-500.0,0.00039178,30]
[355599780,1741357850741,-2051.0,0.00039178,30]
[355599781,1741357850751,-500.0,0.00039178,30]
[355599782,1741357850760,-706.25,0.00039178,30]
[355599783,1741357850769,-500.0,0.00039178,30]
[355599784,1741357850779,-500.0,0.00039178,30]
[355599785,1741357850788,-500.0,0.00039178,30]
[355599786,1741357850798,-580.88,0.00039178,30]
[355599787,1741357850812,-500.0,0.00039178,30]
[355599788,1741357850821,-558.69,0.00039178,30]
[355599789,1741357850831,-500.0,0.00039178,30]
[355599790,1741357850841,-500.0,0.00039178,30]
[355599791,1741357850851,-500.0,0.00039178,30]
[355599792,1741357850861,-500.0,0.00039178,30]
[355599793,1741357850871,-512.17,0.00039178,30]
[355599794,1741357850881,-500.0,0.00039178,30]
[355599795,1741357850891,-500.0,0.00039178,30]
[355599796,1741357850901,-500.0,0.00039178,30]
[355599797,1741357850910,-500.0,0.00039178,30]
[355599798,1741357850920,-500.0,0.00039178,30]
[355599799,1741357850930,-602.65,0.00039178,30]
[355599800,1741357850940,-500.0,0.00039178,30]
[355599801,1741357850949,-712.98,0.00039178,30]
[355599802,1741357850960,-500.0,0.00039178,30]
[355599803,1741357850970,-500.0,0.00039178,30]
[355599804,1741357850979,-500.0,0.00039178,30]
[355599805,1741357850989,-1165.07,0.00039178,30]
[355599806,1741357850999,-500.0,0.00039178,30]
[355599807,1741357851008,-1041.2,0.00039178,30]
[355599808,1741357851018,-1106.08,0.00039178,30]
[355599809,1741357851027,-500.0,0.00039178,30]
[355599810,1741357851037,-832.8,0.00039178,30]
[355599811,1741357851048,-500.0,0.00039178,30]
[355599812,1741357851061,-491.61843968,0.00039178,30]
[355599813,1741357851071,-500.0,0.00039178,30]
[355599814,1741357851081,-541.91419962,0.00039178,30]
[355599815,1741357851091,-548.57,0.00039178,30]
[355599816,1741357851100,-500.0,0.00039178,30]
[355599817,1741357851110,-663.33,0.00039178,30]
[355599818,1741357851120,-500.0,0.00039178,2]
[355599819,1741357851131,-500.0,0.00039178,30]
[355599820,1741357851141,-500.0,0.00039178,30]
[355599821,1741357851154,-500.0,0.00039178,30]
[355599822,1741357851164,-571.98,0.00039178,30]
[355599823,1741357851175,-508.75,0.00039178,30]
[355599824,1741357851185,-773.88,0.00039178,30]
[355599825,1741357851195,-500.0,0.00039178,30]
[355599826,1741357851205,-1190.57,0.00039178,30]
[355599827,1741357851215,-773.31,0.00039178,30]
[355599828,1741357851226,-535.22,0.00039178,30]
[355599829,1741357851236,-1000.0,0.00039178,7]
[355599830,1741357851245,-500.0,0.00039178,30]
[355599831,1741357851255,-674.96,0.00039178,30]
[355599832,1741357851264,-500.0,0.00039178,30]
[355599833,1741357851274,-500.0,0.00039178,30]
[355599834,1741357851283,-500.0,0.00039178,30]
[355599835,1741357851293,-500.0,0.00039178,30]
[355599836,1741357851302,-1092.95,0.00039178,30]
[355599837,1741357851314,-500.0,0.00039178,30]
[355599838,1741357851323,-8089.12,0.00039178,30]
[355599839,1741357851333,-500.0,0.00039178,30]
[355599840,1741357851343,-1368.46,0.00039178,30]
[355599841,1741357851353,-500.0,0.00039178,30]
[355599842,1741357851363,-1646.73,0.00039178,30]
[355599843,1741357851372,-1042.05,0.00039178,30]
[355599844,1741357851382,-896.61,0.00039178,30]
[355599845,1741357851391,-1423.74,0.00039178,30]
[355599846,1741357851402,-545.4,0.00039178,30]
[355599847,1741357851411,-1667.47,0.00039178,30]
[355599848,1741357851421,-855.28,0.00039178,30]
[355599849,1741357851431,-1876.6,0.00039178,30]
[355599850,1741357851441,-500.0,0.00039178,30]
[355599851,1741357851451,-500.0,0.00039178,30]
[355599852,1741357851461,-685.68,0.00039178,30]
[355599853,1741357851470,-1348.74,0.00039178,30]
[355599854,1741357851480,-1572.44,0.00039178,30]
[355599855,1741357851489,-500.0,0.00039178,30]
[355599856,1741357851499,-500.0,0.00039178,30]
[355599857,1741357851508,-500.0,0.00039178,30]
[355599858,1741357851517,-500.0,0.00039178,30]
[355599859,1741357851526,-500.0,0.00039178,30]
[355599860,1741357851537,-132607.36,0.00039178,7]
[355599861,1741357851548,-850.8,0.00039178,30]
[355599862,1741357851558,-500.0,0.00039178,30]
[355599863,1741357851567,-500.0,0.00039178,30]
[355599864,1741357851577,-904.12,0.00039178,30]
[355599865,1741357851587,-1621.58,0.00039178,30]
[355599866,1741357851596,-1312.15,0.00039178,30]